Cogmind - Beta 15 @@@ ROGUE MODE // 2025.06.02 @ 20:37:27 Player: McSaucyNugget Result: Self-destructed Performance ------------- Evolutions (0) 0 Regions Visited (4) 800 Robots Destroyed (41) 205 Value Destroyed (577) 577 Prototype IDs (0) 0 Alien Tech Used (0) 0 Bonus (46) 46 TOTAL SCORE: 1628 Bonus ------- Follower Combat Kills 46 Cogmind --------- Core Integrity 7/250 Matter 228/300 Energy 100/100 System Corruption 0% Temperature Cool (0) Movement Treading (320) Ox2 Location -9/Mines Parts ------- > --- POWER (1) -------- (None) > --- PROPULSION (2) --- Light Treads > --- UTILITY (2) ------ High-capacity Storage Unit > --- WEAPON (2) ------- Beam Cannon > --- INVENTORY (20) --- Ion Engine Light Ion Engine Light Treads Seismic Detector Splice Drone Bay EM Shotgun Light Assault Rifle Light Assault Rifle Light Assault Rifle Light Assault Rifle Grenade Launcher Mining Laser Heavy Hammer Peak State ------------ > --- POWER ------------ Light Ion Engine > --- PROPULSION ------- Wheel Wheel > --- UTILITY ---------- High-capacity Storage Unit Seismic Detector > --- WEAPON ----------- Light Assault Rifle Light Assault Rifle > --- INVENTORY -------- Ion Engine Light Ion Engine Light Treads Light Treads Light Treads Seismic Detector Splice Drone Bay EM Shotgun Light Assault Rifle Light Assault Rifle Grenade Launcher Mining Laser Heavy Hammer [Rating: 9] Favorites ----------- Power Ion Engine Engine Ion Engine Propulsion Wheel Treads Light Treads Wheel Wheel Utility Seismic Detector Device Seismic Detector Storage Huge Storage Unit Weapon Light Assault Rifle Energy Cannon Beam Cannon Ballistic Gun Light Assault Rifle Launcher Grenade Launcher Build | -11 -10 -10 -10 -9 ------- Run | Yrd Mat Min Exi Min Slots Evolved . | . . . . . Power . | . . . . . Propulsion . | . . . . . Utility . | . . . . . Weapon . | . . . . . Parts Attached 21 | 7 6 4 1 3 Power 3 | 1 1 1 . . Engine 3 | 1 1 1 . . Core . | . . . . . Reactor . | . . . . . Propulsion 8 | 2 2 3 . 1 Treads 3 | 2 . . . 1 Leg . | . . . . . Wheel 5 | . 2 3 . . Hover . | . . . . . Flight . | . . . . . Utility 4 | 2 1 . 1 . Device 1 | 1 . . . . Storage 3 | 1 1 . 1 . Processor . | . . . . . Hackware . | . . . . . Protection . | . . . . . Artifact . | . . . . . Weapon 6 | 2 2 . . 2 Energy Gun . | . . . . . Energy Cannon 1 | . . . . 1 Ballistic Gun 4 | 2 1 . . 1 Ballistic Cannon . | . . . . . Launcher 1 | . 1 . . . Special Weapon . | . . . . . Impact Weapon . | . . . . . Slashing Weapon . | . . . . . Piercing Weapon . | . . . . . Special Melee Weapon . | . . . . . Unidentified Prototypes . | . . . . . Parts Lost 11 | . 3 1 . 7 Power 2 | . . 1 . 1 Propulsion 6 | . 2 . . 4 Utility 1 | . . . . 1 Weapon 2 | . 1 . . 1 Highest Loss Streak 5 | . 3 1 . 5 To Critical Strikes . | . . . . . Average Backups 8 | 2 6 7 9 12 Power 1 | . 1 2 2 2 Propulsion 2 | 1 1 2 4 3 Utility 1 | . . 1 1 1 Weapon 2 | . 1 1 2 4 Tool/Special . | . . . . . Unused Backups 10 | . . . . 10 Power 2 | . . . . 2 Propulsion 1 | . . . . 1 Utility 2 | . . . . 2 Weapon 5 | . . . . 5 Tool/Special . | . . . . . Average Slot Usage (%) 94 | . 98 90 100 89 Engine 13 | . 14 13 14 12 Treads 6 | . 4 15 . 2 Wheel 19 | . 23 12 28 18 Device 13 | . 14 14 14 13 Storage 14 | . 14 14 14 14 Ballistic Gun 17 | . 24 7 14 23 Launcher 7 | . 3 12 14 2 Peak Build Rating 9 | 7 7 8 8 9 Average Rating 7 | 5 6 6 7 7 On Entrance 5 | . 7 6 8 7 Naked Turns . | . . . . . Heaviest Build 91 | 13 91 89 88 48 Greatest Support 40 | 40 40 40 20 40 Greatest Overweight (x) 9 | 2 9 8 4 4 Average Overweight (x) 2 | . 2 3 3 3 Largest Inventory Capacity 25 | 8 25 25 25 20 Average Capacity 22 | 6 24 25 24 20 Most Carried 15 | 4 8 10 10 15 Average Carried 8 | 2 6 7 9 12 Final Capacity 25 | 8 25 25 20 20 Final Carried 13 | 4 6 10 9 13 Class Distribution -------------------- 55% | Mutant 44% | Scavenger-Mutant Dominant Class ---------------- Mutant | -10/Materials Mutant | -10/Mines Scavenger-Mutant | -10/Exiles Scavenger-Mutant | -9/Mines Resources | -11 -10 -10 -10 -9 ----------- Run | Yrd Mat Min Exi Min Matter Collected 724 | 180 95 165 . 284 Remotely . | . . . . . Salvage Created 627 | 50 299 212 . 66 Parts 56 | 5 21 17 . 13 Haulers Intercepted 1 | . 1 . . . Recyclers Shooed 1 | . 1 . . . Parts Field Recycled . | . . . . . Retrieved Matter . | . . . . . Parts Self-Destructed . | . . . . . Prevented . | . . . . . Kills | -11 -10 -10 -10 -9 ------- Run | Yrd Mat Min Exi Min Combat Hostiles Destroyed 29 | . 13 8 . 8 Guns 7 | . 4 1 . 2 AOE 22 | . 9 7 . 6 Classes Destroyed 7 | 1 6 . . . Worker 3 | . 3 . . . Builder 1 | . 1 . . . Tunneler 5 | 2 . 3 . . Hauler 1 | . 1 . . . Recycler 2 | . 1 1 . . Swarmer 23 | . 9 6 . 8 Grunt 6 | . 4 2 . . Best Kill Streak 9 | 2 9 6 . 3 Combat Bots Only 5 | . 5 3 . 3 Max Kills in Single Turn 3 | 1 3 3 . 2 Gunslinging . | . . . . . Exploded 2 | . 2 1 . 2 Melee . | . . . . . Uniques/NPCs Destroyed . | . . . . . Combat | -11 -10 -10 -10 -9 -------- Run | Yrd Mat Min Exi Min Hostile Shots Fired 114 | . 42 14 . 58 Missed 31 | . 9 5 . 17 Hits 83 | . 33 9 . 41 Projectile 83 | . 33 9 . 41 AOE 6 | . . . . 6 Critical Strikes 1 | . . 1 . . Damage Taken 1252 | . 429 170 . 653 Core 243 | . 17 26 . 200 Absorbed by Shields . | . . . . . Core Remaining (%) 100 | 100 . . . . Volleys Fired 56 | 10 21 12 . 13 Largest 2 | 2 2 2 . 1 Hottest 60 | 40 40 40 . 60 Shots Fired 79 | 20 31 15 . 13 Gun 53 | 20 20 6 . 7 Cannon 1 | . . . . 1 Launcher 25 | . 11 9 . 5 Special . | . . . . . Kinetic 53 | 20 20 6 . 7 Thermal 1 | . . . . 1 Explosive 25 | . 11 9 . 5 Electromagnetic . | . . . . . Robot Hit Streak 7 | 5 7 5 . 3 Robot Miss Streak 4 | 4 1 3 . 2 Penetration Max . | . . . . . Secondary Targets 3 | . 2 1 . . Max Gunslinging Chain 1 | . 1 1 . . Shots Hit Robots 44 | 12 20 7 . 5 Core Hits 54 | 4 25 15 . 10 Critical Kills . | . . . . . Critical Parts Destroyed . | . . . . . Critical Strikes . | . . . . . Melee Attacks . | . . . . . Impact . | . . . . . Slashing . | . . . . . Piercing . | . . . . . Sneak Attacks . | . . . . . Combat Hostiles . | . . . . . Follow-up Attacks . | . . . . . Damage Inflicted 2098 | 115 1077 497 . 409 Guns 281 | 115 112 24 . 30 Cannons . | . . . . . Explosions 1817 | . 965 473 . 379 Melee . | . . . . . Ramming . | . . . . . Kinetic 281 | 115 112 24 . 30 Thermal 176 | . 81 . . 95 Explosive 1641 | . 884 473 . 284 Electromagnetic . | . . . . . Impact . | . . . . . Slashing . | . . . . . Piercing . | . . . . . Highest Corruption . | . . . . . Average Corruption . | . . . . . Corruption Purged . | . . . . . Corruption Blocked . | . . . . . Overload Shots . | . . . . . Overflow Damage 149 | . 72 14 . 63 Projectiles . | . . . . . Explosions 149 | . 72 14 . 63 Melee . | . . . . . Knockbacks . | . . . . . Impact . | . . . . . Kinetic . | . . . . . Secondary . | . . . . . Self-Inflicted Damage 312 | . 111 88 . 113 Shots 10 | . 3 4 . 3 Rammed . | . . . . . Targets Rammed . | . . . . . Kicked . | . . . . . Crushed . | . . . . . Highest Temperature 22 | . 4 4 . 22 Average Temperature 7 | . 2 4 . 19 Received Heat Transfer 63 | . 54 9 . . Siege Activations . | . . . . . Martial Activations . | . . . . . Shielding Activations . | . . . . . Robots Disrupted . | . . . . . Combat Hostiles . | . . . . . Robots Corrupted . | . . . . . Combat Hostiles . | . . . . . Parts Fried . | . . . . . Impact Corruptions . | . . . . . Robots Melted . | . . . . . Combat Hostiles . | . . . . . Parts Melted . | . . . . . Heat Transferred 200 | . 50 . . 150 Parts Sabotaged . | . . . . . Parts Stolen . | . . . . . Parts Stripped . | . . . . . Power Chain Reactions . | . . . . . Alert | -11 -10 -10 -10 -9 ------- Run | Yrd Mat Min Exi Min Maximum Alert Level 1 | . 1 1 . . Low Security (%) 86 | 100 82 72 . 100 Level 1 13 | . 17 27 . . Level 2 . | . . . . . Level 3 . | . . . . . Level 4 . | . . . . . Level 5 . | . . . . . High Security . | . . . . . Max Security . | . . . . . Peak Influence 377 | 5 377 248 . 88 Initial 143 | . . 143 . . Average 93 | . 102 165 . 35 Influence Increases 1133 | 10 503 265 . 355 Destroy 0b10 Robot/C 620 | . 260 160 . 200 Destroy 0b10 Robot/NC 60 | 10 30 20 . . Destroy Leader 112 | . 42 30 . 40 Allied During Kill 17 | . . . . 17 Disable Machine 90 | . 45 15 . 30 Destroy Structure 189 | . 96 40 . 53 Lose Combat Pursuer 45 | . 30 . . 15 Influence Decreases 1123 | 10 134 434 200 345 Entered New Map 426 | . . 226 200 . Time Decay 487 | 10 104 198 . 175 Lost Part 90 | . 30 10 . 50 Lost Ally 120 | . . . . 120 Squads Dispatched . | . . . . . Investigation . | . . . . . Extermination . | . . . . . Reinforcement . | . . . . . Assault . | . . . . . Garrison . | . . . . . Intercept . | . . . . . Searches Triggered . | . . . . . Construction Impeded . | . . . . . Haulers Reinforced . | . . . . . Active Scanning Responses . | . . . . . Cargo Convoy Interrupts . | . . . . . Stealth | -11 -10 -10 -10 -9 --------- Run | Yrd Mat Min Exi Min Distress Signals . | . . . . . Communications Jammed . | . . . . . Distress Signals . | . . . . . Times Spotted 40 | . 16 7 . 17 Peak Tracking Total 5 | . 5 3 . 5 Tactical Retreats 3 | . 2 . . 1 Traps | -11 -10 -10 -10 -9 ------- Run | Yrd Mat Min Exi Min Traps Triggered . | . . . . . Indirectly . | . . . . . Trap Hack Attempts . | . . . . . Triggered . | . . . . . Disarmed . | . . . . . Reprogrammed . | . . . . . Reused . | . . . . . Traps Extracted . | . . . . . Installed . | . . . . . Triggered . | . . . . . Machines | -11 -10 -10 -10 -9 ---------- Run | Yrd Mat Min Exi Min Machines Disabled 6 | . 3 1 . 2 Max in Single Turn 2 | . 2 1 . 2 Machines Repaired . | . . . . . Machines Dismantled . | . . . . . Machines Sabotaged . | . . . . . Overloaded Fab Kills . | . . . . . Hacking | -11 -10 -10 -10 -9 --------- Run | Yrd Mat Min Exi Min Machines Accessed 3 | . 1 . 1 1 Terminals 1 | . 1 . . . Fabricators . | . . . . . Repair Stations . | . . . . . Recycling Units . | . . . . . Scanalyzers . | . . . . . Garrison Access . | . . . . . Total Hacks 3 | . 1 . 1 1 Successful 2 | . . . 1 1 Failed 1 | . 1 . . . Catastrophic 1 | . 1 . . . Database Lockouts . | . . . . . Manual . | . . . . . Terminals 1 | . 1 . . . Fabricators . | . . . . . Repair Stations . | . . . . . Recycling Units . | . . . . . Scanalyzers . | . . . . . Garrison Access . | . . . . . Terminal Hacks 2 | . . . 1 1 Record 1 | . . . 1 . Open Door 1 | . . . . 1 Fabricator Hacks . | . . . . . Repair Station Hacks . | . . . . . Recycling Unit Hacks . | . . . . . Scanalyzer . | . . . . . Garrison Access Hacks . | . . . . . Unauthorized Hacks . | . . . . . Terminals . | . . . . . Fabricators . | . . . . . Repair Stations . | . . . . . Recycling Units . | . . . . . Scanalyzers . | . . . . . Garrison Access . | . . . . . Data Cores Recovered . | . . . . . Used . | . . . . . Hacking Detections 1 | . 1 . . . Full Trace Events . | . . . . . Feedback Events . | . . . . . Feedback Blocked . | . . . . . Robot Schematics Acquired . | . . . . . Robots Built . | . . . . . Authchips . | . . . . . Time . | . . . . . Total Robot Build Rating . | . . . . . Part Schematics Acquired . | . . . . . Parts Built . | . . . . . Authchips . | . . . . . Time . | . . . . . Total Part Build Rating . | . . . . . Parts Repaired . | . . . . . Time . | . . . . . Parts Recycled . | . . . . . Recycled Matter . | . . . . . Retrieved Matter . | . . . . . Retrieved Components . | . . . . . Parts Scanalyzed . | . . . . . Part Schematics Acquired . | . . . . . Parts Damaged . | . . . . . Bothacking | -11 -10 -10 -10 -9 ------------ Run | Yrd Mat Min Exi Min Used RIF Installer . | . . . . . Robots Hacked . | . . . . . Non-combat . | . . . . . Combat . | . . . . . Robot Hacks Applied . | . . . . . Relay Couplers Released . | . . . . . Fabnet Peak Effective % . | . . . . . Robots Rewired . | . . . . . Allies Hacked . | . . . . . Hacks Repelled . | . . . . . Allies | -11 -10 -10 -10 -9 -------- Run | Yrd Mat Min Exi Min Total Allies 6 | . . . . 6 Largest Group 4 | . . . . 4 Highest-Rated Group 71 | . . . . 71 Highest-Rated Ally 31 | . . . . 31 Total Orders . | . . . . . Ally Attacks 20 | . . . . 20 Total Damage 210 | . . . . 210 Kills 2 | . . . . 2 Allies Corrupted . | . . . . . Allies Melted . | . . . . . Intel | -11 -10 -10 -10 -9 ------- Run | Yrd Mat Min Exi Min Active Infowar (turns) 1469 | 11 447 403 218 390 Seismic 1469 | 11 447 403 218 390 Robot Analysis Total . | . . . . . Derelict Logs Recovered 1 | . . 1 . . Drone Launches . | . . . . . Drone Recoveries . | . . . . . Exploration | -11 -10 -10 -10 -9 ------------- Run | Yrd Mat Min Exi Min Turns Passed 1584 | 113 447 403 218 403 Spaces Moved 929 | 50 263 178 163 275 Core 13 | 13 . . . . Treads 136 | 37 26 63 . 10 Legs . | . . . . . Wheels 780 | . 237 115 163 265 Hover . | . . . . . Flight . | . . . . . Fastest Speed 50 | 50 135 140 110 110 Average Speed 150 | 147 145 204 133 130 Slowest Speed 320 | 160 320 320 140 320 Overloaded Moves . | . . . . . Propulsion Burnouts . | . . . . . Robots Hopped . | . . . . . Potential Cave-ins . | . . . . . Cave-ins Triggered . | . . . . . Exploration Rate (%) 42 | 4 46 39 52 70 Regions Visited 4 Branch Regions 3 Pre-discovered Areas 1 | . . . 1 . Known Exits Taken . | . . . . . Unknown Exits Taken 4 | 1 1 1 1 . Scrap Searched 3 | . . 1 . 2 Spaces Dug . | . . . . . Terrain Destroyed 196 | . 102 46 . 48 Melee . | . . . . . Projectile . | . . . . . AOE 196 | . 102 46 . 48 Terrain Rammed . | . . . . . Walls Destroyed . | . . . . . Machines Disabled . | . . . . . Actions | -11 -10 -10 -10 -9 --------- Run | Yrd Mat Min Exi Min Total 1037 | 70 298 200 164 305 Wait 1 | . 1 . . . Move 925 | 49 262 177 162 275 Hop . | . . . . . Pick Up 19 | 4 3 4 . 8 Fast Attach 8 | 7 . 1 . . Attach 6 | . 2 1 . 3 Detach . | . . . . . Swap 19 | . 8 5 1 5 Drop 3 | . 1 . 1 1 Fire 56 | 10 21 12 . 13 Melee . | . . . . . Ram . | . . . . . Kick . | . . . . . Crush . | . . . . . Escape Stasis . | . . . . . Rewire . | . . . . . Trap . | . . . . . Miscellaneous . | . . . . . Route ------- -11/Scrapyard -10/Materials (discovered 4 exits: [*Mat x2] / [*Min x2]) -10/Mines (discovered 2 exits: *Exi / [*Sub]) -10/Exiles -9/Mines History --------- Turn | Location | Event 15 | -11/Scrapyard | Discovered new exit (range 16) 114 | -11/Scrapyard | Entered Materials 314 | -10/Materials | Build established: Mutant 415 | -10/Materials | Discovered new exit (range 4) 467 | -10/Materials | Discovered new exit (range 15) 515 | -10/Materials | Discovered new exit (range 10) 533 | -10/Materials | Discovered new exit (range 12) 561 | -10/Materials | Entered Mines 564 | -10/Mines | Lost 3 parts (2n1w) 622 | -10/Mines | Learned location of 1 exit from Materials 916 | -10/Mines | Deemed a non-threat by the Exiles lab entrance 917 | -10/Mines | Discovered new exit (range 5) 940 | -10/Mines | Discovered new exit (range 5) 964 | -10/Mines | Entered Exiles 997 | -10/Exiles | Met 8R-AWN 1023 | -10/Exiles | Met EX-HEX 1062 | -10/Exiles | Met EX-BIN 1096 | -10/Exiles | Learned location of Zion (-6) 1112 | -10/Exiles | Build established: Scavenger-Mutant 1170 | -10/Exiles | Discovered new exit (range 14) 1182 | -10/Exiles | Entered Mines 1185 | -9/Mines | Received a Mining Laser from a helpful Derelict 1277 | -9/Mines | Found the Drone Emporium 1283 | -9/Mines | Found Prototype Device 1509 | -9/Mines | Assisted by bots powering up and referring to "LRC-V3" 1536 | -9/Mines | Assembled infested the area 1541 | -9/Mines | Assisted by a Guerilla fighting off Assembled 1564 | -9/Mines | Core integrity fell below 50% 1577 | -9/Mines | Core integrity fell below 20% 1585 | -9/Mines | Self-destructed Last Messages --------------- 01546_ Trooper 2b destroyed. 01548_ Mercenary 2a destroyed. 01548_ SW-WX6(h) destroyed. 01551_ T-07 Excavator destroyed. 01553_ Trooper 2a destroyed. 01553_ Plasma Injector explodes. 01553_ Lgt. Assault Rifle destroyed. 01553_ Destroyed Lgt. Assault Rifle. 01553_ Lgt. Ion Engine destroyed. 01553_ Destroyed Lgt. Ion Engine. 01553_ S-10 Pest destroyed. 01553_ Destroyed Flight Unit. 01553_ Core Extractor disabled. 01554_ The unstable cave ceiling collapses. 01557_ Wheel destroyed. 01561_ S-10 Pest destroyed. 01562_ The unstable cave ceiling collapses. 01572_ Seismic Detector destroyed. 01580_ as-31964 destroyed. 01582_ Lgt. Treads destroyed. Map ----- +----------------------------------------------------+ | #? ?????????????????????###### ##?????????? | | ### ????????????????????## ##????????? | | ####????####????????# #????????? | | ##??## #?????### ##???????? | | ##?# ##???? # ????????? | | #??# ##???# # #?????????? | | #### ##??# # # ##?????????? | | ### #??# # ?????????? | | ##?# #### #?????????? | | ???# ####### ## ##????????? | | ##?# ##?????## =% [ #????????? | | #?# ##???????# % ?????????? | | #?# #????????## # [ #?????????? | | ### #?????????## ## # #?????????? | | ##?????????# ### ##%s;#?????????? | | ##????##### ##?#####;;;;% ;##????????? | | ###??# ##??# ;#????????? | | ##?# #???# "" d ;#????????? | | ### #??## "" ##????????? | | ##### #??# ;#????????? | | ## ## #??####?## ##????????? | | ?## ##?# #??????# #?????????? | | ??# ???# #??????# #?????????? | | ??# #???? #??????# #?????????? | | ??###?????? ##??????# #####?????????? | | ???????????###???????# @ #?????????????? | | ????????????????????# ##?????????????? | | ????????????????????# #??????????????? | | ????????????????????## ##??????????????? | | ?????????????????????#### aa #??????????????? | | ????????????????????????##### #??????????????? | | ????????????????????????????? a??????????????? | | ??????????????????????????????##?????????????? | | ?????????????????????????????????????????????? | | ?????????????????????????????????????????????? | | ?????????????????????????????????????????????? | | | | | | | | | | | | | | | | | | | | | | | | | | | | | +----------------------------------------------------+ Best States ------------- Heat Dissipation 25 Energy Generation 10 Energy Capacity 250 Matter Stores 233 Matter Capacity 300 Sight Range 16 Terrain Scan Density 10 Evasion (%) 40 Recoil Reduction 2 Item Schematics ----------------- None Robot Schematics ------------------ None Fabricated ------------ Nothing Repaired ---------- Nothing Alien Tech Used ----------------- None Achievements -------------- None Challenges ------------ None Game ------ Seed TimingGodCompressor Manual? 0 Play Time 00:11:26 Cumulative 66.5 hours Start 2025.06.02 @ 20:27:56 End 2025.06.02 @ 20:37:27 Sessions 1 Manual Loads 0 Difficulty Rogue Special Mode None Game No. 49 Rogue 49 Adventurer 0 Explorer 0 Win Type - Total 5 Types 2/0/1/0/1/0/0/0/0/1 Lore% 54 Gallery% 50 Achievement% 55 Wizard Run 0 Options --------- Layout 0 ASCII 0 Keyboard 1 Movement Vi Keybinds 0 Fullscreen 2 Font 18/SmallcapsGlow Map View 76x50 Zoom Use 0% Tactical HUD 1 Map Filters NONE Filters NONE Steam 1 RUN: 1eecd2a7-1827-41bc-aaf2-04c33d1f096a